Cogmind - Beta 17.1 @@@ ROGUE MODE // 2026.09.12 @ 22:08:46 Player: MOPO3 Result: Destroyed by DAS Turret with DAS Cannon Performance ------------- Evolutions (0) 0 Regions Visited (3) 600 Robots Destroyed (26) 130 Value Destroyed (506) 506 Prototype IDs (3) 60 Alien Tech Used (0) 0 Bonus (300) 300 TOTAL SCORE: 1596 Bonus ------- Aligned with FarCom 300 Cogmind --------- Core Integrity 0/250 Matter 290/300 Energy 250/250 System Corruption 1% Temperature Cool (0) Movement Core (1450) Ox28 Location -10/Exiles Parts ------- > --- POWER (1) -------- Ion Engine > --- PROPULSION (2) --- (None) > --- UTILITY (2) ------ Huge Storage Unit Experimental Sensor Array > --- WEAPON (2) ------- (None) > --- INVENTORY (25) --- Ion Engine Light Ion Engine Wheel Wheel Wheel Compact Wheel Compact Wheel Improved Heat Sink Small Storage Unit Large Storage Unit High-capacity Matter Pod (200) Signal Interpreter Seismic Detector Seismic Detector EM Pulse Gun Medium Laser Medium Laser Beam Cannon Assault Rifle Light Assault Rifle Light Assault Rifle Light Assault Rifle Light Assault Rifle Rocket Launcher Welding Torch Peak State ------------ > --- POWER ------------ Ion Engine > --- PROPULSION ------- Wheel Compact Wheel > --- UTILITY ---------- Huge Storage Unit Experimental Sensor Array > --- WEAPON ----------- EM Pulse Gun Field Lobotomy Kit > --- INVENTORY -------- Ion Engine Light Ion Engine Wheel Wheel Wheel Compact Wheel Compact Wheel Improved Heat Sink Small Storage Unit Large Storage Unit High-capacity Matter Pod Signal Interpreter Seismic Detector Seismic Detector EM Pulse Gun Medium Laser Medium Laser Beam Cannon Light Assault Rifle Light Assault Rifle Light Assault Rifle Light Assault Rifle Grenade Launcher Rocket Launcher Welding Torch [Rating: 26] Favorites ----------- Power Ion Engine Engine Ion Engine Propulsion Wheel Wheel Wheel Utility Huge Storage Unit Device Seismic Detector Storage Huge Storage Unit Weapon Assault Rifle Energy Gun EM Pulse Gun Ballistic Gun Assault Rifle Special Weapon Field Lobotomy Kit Build | -11 -10 -10 -10 ------- Run | Yrd Mat Min Exi Slots Evolved . | . . . . Power . | . . . . Propulsion . | . . . . Utility . | . . . . Weapon . | . . . . Parts Attached 16 | 7 5 2 2 Power 1 | 1 . . . Engine 1 | 1 . . . Core . | . . . . Reactor . | . . . . Propulsion 4 | 2 2 . . Treads . | . . . . Leg . | . . . . Wheel 4 | 2 2 . . Hover . | . . . . Flight . | . . . . Utility 7 | 2 2 2 1 Device 4 | 1 . 2 1 Storage 3 | 1 2 . . Processor . | . . . . Hackware . | . . . . Protection . | . . . . Artifact . | . . . . Weapon 4 | 2 1 . 1 Energy Gun 1 | . 1 . . Energy Cannon . | . . . . Ballistic Gun 2 | 2 . . . Ballistic Cannon . | . . . . Launcher . | . . . . Special Weapon 1 | . . . 1 Impact Weapon . | . . . . Slashing Weapon . | . . . . Piercing Weapon . | . . . . Special Melee Weapon . | . . . . Unidentified Prototypes 3 | . . 1 2 Parts Lost 6 | . 2 . 4 Power . | . . . . Propulsion 4 | . 2 . 2 Utility . | . . . . Weapon 2 | . . . 2 Highest Loss Streak 4 | . 1 . 4 To Critical Strikes . | . . . . Average Backups 18 | 4 13 24 25 Power 1 | . 1 1 2 Propulsion 4 | 2 3 5 5 Utility 5 | . 3 6 7 Weapon 7 | 1 4 9 10 Tool/Special . | . . . . Unused Backups 25 | . 5 . 20 Power 3 | . 1 . 2 Propulsion 7 | . 2 . 5 Utility 3 | . . . 3 Weapon 11 | . 2 . 9 Tool/Special 1 | . . . 1 Average Slot Usage (%) 99 | . 99 100 99 Engine 14 | . 14 14 14 Wheel 27 | . 27 28 27 Device 13 | . 14 14 13 Storage 14 | . 14 14 14 Energy Gun 11 | . 7 14 14 Ballistic Gun 15 | . 20 14 5 Special Weapon 1 | . . . 7 Peak Build Rating 26 | 7 9 17 26 Average Rating 12 | 5 7 15 21 On Entrance 8 | . 7 9 17 Avg Prop Armor Cover (%) . | . . . . Naked Turns . | . . . . Heaviest Build 96 | 14 90 90 96 Greatest Support 26 | 20 26 26 26 Greatest Overweight (x) 8 | . 4 3 8 Average Overweight (x) 2 | . 2 3 3 Largest Inventory Capacity 25 | 8 25 25 25 Average Capacity 22 | 7 20 25 25 Most Carried 25 | 8 18 25 25 Average Carried 19 | 4 13 24 25 Final Capacity 25 | 8 25 25 25 Final Carried 25 | 8 18 25 25 Class Distribution -------------------- 100% | Mutant Dominant Class ---------------- Mutant | -10/Materials Mutant | -10/Mines Mutant | -10/Exiles Resources | -11 -10 -10 -10 ----------- Run | Yrd Mat Min Exi Matter Collected 826 | 310 484 32 . Remotely . | . . . . Salvage Created 844 | 116 689 39 . Parts 70 | 13 52 5 . Haulers Intercepted 1 | . 1 . . Recyclers Shooed 4 | . 4 . . Parts Field Recycled . | . . . . Retrieved Matter . | . . . . Parts Self-Destructed . | . . . . Prevented . | . . . . Parts Restored . | . . . . Kills | -11 -10 -10 -10 ------- Run | Yrd Mat Min Exi Combat Hostiles Destroyed 15 | . 13 2 . Guns 15 | . 13 2 . Classes Destroyed 9 | 2 7 . . Worker 1 | . 1 . . Builder 1 | . 1 . . Tunneler 4 | 3 1 . . Hauler 1 | . 1 . . Recycler 2 | 1 1 . . Operator 1 | . 1 . . Watcher 1 | . 1 . . Swarmer 5 | . 3 2 . Grunt 10 | . 10 . . Best Kill Streak 4 | 3 4 2 . Combat Bots Only 3 | . 3 2 . Max Kills in Single Turn 2 | 1 2 1 . Gunslinging 1 | . 1 . . Exploded . | . . . . Melee . | . . . . Uniques/NPCs Destroyed . | . . . . Combat | -11 -10 -10 -10 -------- Run | Yrd Mat Min Exi Hostile Shots Fired 73 | . 50 8 15 Missed 20 | . 13 2 5 Hits 53 | . 37 6 10 Projectile 53 | . 37 6 10 Damage Taken 850 | . 436 45 369 Core 255 | . 99 7 149 Absorbed by Shields . | . . . . Regen/Repaired (Parts) 138 | . 138 . . Core Remaining (%) 100 | 100 . . . Volleys Fired 79 | 10 63 4 2 Largest 2 | 2 2 2 1 Hottest 60 | 40 60 60 . Shots Fired 156 | 20 126 8 2 Gun 154 | 20 126 8 . Cannon . | . . . . Launcher . | . . . . Special 2 | . . . 2 Kinetic 132 | 20 108 4 . Thermal . | . . . . Explosive . | . . . . Electromagnetic 22 | . 18 4 . Robot Hit Streak 25 | 7 25 1 3 Robot Miss Streak 3 | 2 3 2 . Penetration Max . | . . . . Secondary Targets 1 | . 1 . . Max Gunslinging Chain 1 | . 1 . . Shots Hit Robots 109 | 14 90 3 2 Core Hits 46 | 7 37 2 . Critical Kills . | . . . . Critical Parts Destroyed . | . . . . Critical Strikes . | . . . . Melee Attacks . | . . . . Impact . | . . . . Slashing . | . . . . Piercing . | . . . . Sneak Attacks . | . . . . Combat Hostiles . | . . . . Follow-up Attacks . | . . . . Damage Inflicted 1255 | 159 1063 33 . Guns 1215 | 159 1023 33 . Cannons . | . . . . Explosions 40 | . 40 . . Melee . | . . . . Ramming . | . . . . Kinetic 1029 | 159 848 22 . Thermal 40 | . 40 . . Explosive . | . . . . Electromagnetic 186 | . 175 11 . Impact . | . . . . Slashing . | . . . . Piercing . | . . . . Highest Corruption 1 | . . . 1 Average Corruption 1 | . . . 1 Corruption Purged . | . . . . Corruption Blocked . | . . . . Overload Shots . | . . . . Overflow Damage . | . . . . Projectiles . | . . . . Explosions . | . . . . Melee . | . . . . Knockbacks . | . . . . Impact . | . . . . Kinetic . | . . . . Secondary . | . . . . Self-Inflicted Damage . | . . . . Shots . | . . . . Rammed . | . . . . Targets Rammed . | . . . . Kicked . | . . . . Crushed . | . . . . Highest Temperature 63 | . 63 . . Average Temperature 20 | . 20 . . Received Heat Transfer 216 | . 216 . . Siege Activations . | . . . . Martial Activations . | . . . . Shielding Activations . | . . . . Robots Disrupted . | . . . . Combat Hostiles . | . . . . Robots Corrupted . | . . . . Combat Hostiles . | . . . . Parts Fried . | . . . . Impact Corruptions . | . . . . Robots Melted . | . . . . Combat Hostiles . | . . . . Parts Melted . | . . . . Heat Transferred 50 | . 50 . . Parts Sabotaged . | . . . . Parts Stolen . | . . . . Parts Stripped . | . . . . Power Chain Reactions 1 | . 1 . . Alert | -11 -10 -10 -10 ------- Run | Yrd Mat Min Exi Maximum Alert Level . | . . . . Low Security (%) 100 | 100 100 100 . Level 1 . | . . . . Level 2 . | . . . . Level 3 . | . . . . Level 4 . | . . . . Level 5 . | . . . . High Security . | . . . . Max Security . | . . . . Peak Influence 134 | 10 134 71 . Initial 21 | . . 21 . Average 47 | 1 84 6 . Influence Increases 570 | 20 500 50 . Destroy 0b10 Robot/C 300 | . 260 40 . Destroy 0b10 Robot/NC 55 | 20 35 . . Destroy Leader 84 | . 74 10 . Successful Hack 20 | . 20 . . Select Force Hacks 60 | . 60 . . Disable Machine 15 | . 15 . . Destroy Structure 6 | . 6 . . Lose Combat Pursuer 30 | . 30 . . Influence Decreases 570 | 20 444 106 . Entered New Map 35 | . . 35 . Time Decay 515 | 20 424 71 . Lost Part 20 | . 20 . . Squads Dispatched 4 | . 4 . . Investigation 2 | . 2 . . Extermination . | . . . . Reinforcement 2 | . 2 . . Assault . | . . . . Garrison . | . . . . Intercept . | . . . . Searches Triggered . | . . . . Construction Impeded . | . . . . Haulers Reinforced . | . . . . Active Scanning Responses . | . . . . Cargo Convoy Interrupts . | . . . . Stealth | -11 -10 -10 -10 --------- Run | Yrd Mat Min Exi Distress Signals . | . . . . Communications Jammed . | . . . . Distress Signals . | . . . . Times Spotted 28 | . 23 3 2 Peak Tracking Total 12 | . 5 3 12 Tactical Retreats 1 | . 1 . . Traps | -11 -10 -10 -10 ------- Run | Yrd Mat Min Exi Traps Triggered . | . . . . Indirectly . | . . . . Trap Hack Attempts . | . . . . Triggered . | . . . . Disarmed . | . . . . Reprogrammed . | . . . . Reused . | . . . . Traps Extracted . | . . . . Installed . | . . . . Triggered . | . . . . Machines | -11 -10 -10 -10 ---------- Run | Yrd Mat Min Exi Machines Disabled 1 | . 1 . . Max in Single Turn 1 | . 1 . . Machines Repaired . | . . . . Machines Dismantled . | . . . . Machines Sabotaged . | . . . . Overloaded Fab Kills . | . . . . Hacking | -11 -10 -10 -10 --------- Run | Yrd Mat Min Exi Machines Accessed 10 | . 7 . 3 Terminals 4 | . 4 . . Fabricators . | . . . . Repair Stations 1 | . 1 . . Recycling Units 2 | . 2 . . Scanalyzers . | . . . . Garrison Access . | . . . . Total Hacks 45 | . 19 . 26 Successful 39 | . 13 . 26 Failed 6 | . 6 . . Catastrophic 1 | . 1 . . Database Lockouts . | . . . . Manual 14 | . 13 . 1 Terminals 11 | . 11 . . Fabricators . | . . . . Repair Stations 4 | . 4 . . Recycling Units 4 | . 4 . . Scanalyzers . | . . . . Garrison Access . | . . . . Terminal Hacks 28 | . 2 . 26 Record 26 | . . . 26 Part Schematic 2 | . 2 . . Fabricator Hacks . | . . . . Repair Station Hacks 4 | . 4 . . Scan Component 2 | . 2 . . Repair 2 | . 2 . . Recycling Unit Hacks 2 | . 2 . . Report Inventory 2 | . 2 . . Scanalyzer . | . . . . Garrison Access Hacks . | . . . . Unauthorized Hacks 5 | . 5 . . Terminals 3 | . 3 . . Botnet 3 | . 3 . . Fabricators . | . . . . Repair Stations . | . . . . Recycling Units 2 | . 2 . . Tunnel 2 | . 2 . . Scanalyzers . | . . . . Garrison Access . | . . . . Data Cores Recovered . | . . . . Used . | . . . . Hacking Detections 6 | . 6 . . Full Trace Events 1 | . 1 . . Feedback Events . | . . . . Feedback Blocked . | . . . . Robot Schematics Acquired . | . . . . Robots Built . | . . . . Authchips . | . . . . Time . | . . . . Total Robot Build Rating . | . . . . Part Schematics Acquired 1 | . 1 . . Parts Built . | . . . . Authchips . | . . . . Time . | . . . . Total Part Build Rating . | . . . . Part Studies Acquired . | . . . . Parts Repaired 2 | . 2 . . Time 52 | . 52 . . Parts Recycled . | . . . . Recycled Matter . | . . . . Retrieved Matter . | . . . . Retrieved Components . | . . . . Parts Scanalyzed . | . . . . Part Schematics Acquired . | . . . . Parts Damaged . | . . . . Bothacking | -11 -10 -10 -10 ------------ Run | Yrd Mat Min Exi Used RIF Installer . | . . . . Robots Hacked . | . . . . Non-combat . | . . . . Combat . | . . . . Robot Hacks Applied . | . . . . Relay Couplers Released . | . . . . Fabnet Peak Effective % . | . . . . Robots Rewired . | . . . . Allies Hacked . | . . . . Hacks Repelled . | . . . . Allies | -11 -10 -10 -10 -------- Run | Yrd Mat Min Exi Total Allies . | . . . . Largest Group . | . . . . Highest-Rated Group . | . . . . Highest-Rated Ally . | . . . . Total Orders . | . . . . Ally Attacks . | . . . . Total Damage . | . . . . Kills . | . . . . Allies Corrupted . | . . . . Allies Melted . | . . . . Intel | -11 -10 -10 -10 ------- Run | Yrd Mat Min Exi Active Infowar (turns) 2352 | 29 1060 814 449 Sensors 1087 | . . 638 449 Seismic 1265 | 29 1060 176 . Robot Analysis Total . | . . . . Derelict Logs Recovered 2 | . . 2 . Drone Launches . | . . . . Drone Recoveries . | . . . . Exploration | -11 -10 -10 -10 ------------- Run | Yrd Mat Min Exi Turns Passed 2453 | 117 1060 814 462 Spaces Moved 1571 | 74 604 563 330 Core 2 | 2 . . . Treads . | . . . . Legs . | . . . . Wheels 1569 | 72 604 563 330 Hover . | . . . . Flight . | . . . . Fastest Speed 50 | 50 80 135 135 Average Speed 126 | 79 119 135 135 Slowest Speed 200 | 80 140 135 200 Overloaded Moves . | . . . . Propulsion Burnouts . | . . . . Robots Hopped . | . . . . Potential Cave-ins . | . . . . Cave-ins Triggered . | . . . . Exploration Rate (%) 62 | 5 80 96 68 Regions Visited 3 Branch Regions 2 Pre-discovered Areas 3 | . 2 1 . Known Exits Taken . | . . . . Unknown Exits Taken 3 | 1 1 1 . Scrap Searched 3 | . . 3 . Spaces Dug . | . . . . Terrain Destroyed 3 | . 3 . . Melee . | . . . . Projectile . | . . . . AOE 3 | . 3 . . Terrain Rammed . | . . . . Walls Destroyed . | . . . . Machines Disabled . | . . . . Actions | -11 -10 -10 -10 --------- Run | Yrd Mat Min Exi Total 1885 | 110 825 608 342 Wait 180 | 12 131 34 3 Move 1568 | 73 603 562 330 Hop . | . . . . Pick Up 31 | 8 16 6 1 Fast Attach 11 | 7 2 . 2 Attach 2 | . 2 . . Detach . | . . . . Swap 5 | . 2 2 1 Drop 9 | . 6 . 3 Fire 79 | 10 63 4 2 Melee . | . . . . Ram . | . . . . Kick . | . . . . Crush . | . . . . Escape Stasis . | . . . . Rewire . | . . . . Trap . | . . . . Miscellaneous . | . . . . Route ------- -11/Scrapyard -10/Materials (discovered 4 exits: [*Mat x2] / [*Min] / [*Sub]) -10/Mines (discovered 4 exits: [*Mat x2] / *Exi / [*Sub]) -10/Exiles (discovered 1 exit: [*Min]) History --------- Turn | Location | Event 30 | -11/Scrapyard | Discovered new exit (range 14) 118 | -11/Scrapyard | Entered Materials 307 | -10/Materials | Build established: Mutant 566 | -10/Materials | Repaired Assault Rifle 606 | -10/Materials | Repaired Lgt. Assault Rifle 760 | -10/Materials | Discovered new exit (range 9) 920 | -10/Materials | Discovered new exit (range 7) 992 | -10/Materials | Discovered new exit (range 9) 1082 | -10/Materials | Discovered new exit (range 8) 1178 | -10/Materials | Entered Mines 1185 | -10/Mines | Received a Rocket Launcher from a helpful Derelict 1347 | -10/Mines | Found a damaged Exp. Sensor Array with a note attached 1353 | -10/Mines | Found Prototype Device 1354 | -10/Mines | Identified Exp. Sensor Array 1475 | -10/Mines | Learned location of Zion (-7) 1566 | -10/Mines | Learned Materials garrison access intel 1694 | -10/Mines | Discovered new exit (range 7) 1894 | -10/Mines | Discovered new exit (range 13) 1960 | -10/Mines | Discovered new exit (range 4) 1985 | -10/Mines | Deemed a non-threat by the Exiles lab entrance 1987 | -10/Mines | Discovered new exit (range 5) 1992 | -10/Mines | Entered Exiles 2026 | -10/Exiles | Met 8R-AWN 2048 | -10/Exiles | Met EX-HEX 2090 | -10/Exiles | Met EX-BIN 2110 | -10/Exiles | Aligned with FarCom system 2111 | -10/Exiles | Given EX-Vault access code 2175 | -10/Exiles | Opened EX-Vault 2181 | -10/Exiles | Found Prototype Device 2181 | -10/Exiles | Identified PSU Rigger 2185 | -10/Exiles | Found Prototype Special Weapon 2185 | -10/Exiles | Identified Field Lobotomy Kit 2222 | -10/Exiles | Warned to stay clear of 0b10 Research branches 2287 | -10/Exiles | Met EX-DEC 2357 | -10/Exiles | Discovered new exit (range 14) 2445 | -10/Exiles | Attacked by the Exiles 2448 | -10/Exiles | Core integrity fell below 50% 2453 | -10/Exiles | Core integrity fell below 20% 2454 | -10/Exiles | Destroyed by DAS Turret with DAS Cannon Last Messages --------------- your atomic chain! 02289_ EX-DEC: "Oops, I hope HEX didn't hear that..." 02295_ Connecting with EX-Message Board... 02357_ EXIT=FOUND 02444_ EX-DEC unaffected by assimilation attempt. 02445_ EXILES: Hostile robot within lab perimeter. Defensive protocols time, folks! 02447_ EX-DEC: "Let's see what this bad boy can do..." 02447_ EX-DEC deploys DAS Turret. 02447_ Knocked back. 02447_ EX-DEC unaffected by assimilation attempt. 02448_ Knocked back. 02448_ Com. Wheel destroyed. 02448_ Machine disabled. 02449_ Field Lobotomy Kit destroyed. 02450_ Wheel destroyed. 02450_ Knocked back. 02452_ EM Pulse Gun destroyed. 02452_ Knocked back. 02454_ EX-BIN: "I just want to science!" Map ----- +----------------------------------------------------+ | ???#######?????????????????????????#" "" | | ???#!!! "#?????????????????????????#" " | | ???# "#?????????????????????????#" " | | ???# "#?????????????????????????#" " | | ??## ""#??????????########???????#" " | | ###" ""#??????????# """#???????#" " | | ##" ""#??????????#"" """#???????## " | | #"" ###??????????#"" #????????# " | | #????????????#"" #????????#" "X" " | | ##???????????#"" "#????????#" """ | | "#???????????# ""#????????#" """"""" | | ###?????????#"" ""#???????##" ######## | | ##????????### ###??????##"" #??????? | | "###"" ######???### ###?######"" #??????? | | "#?##" """#####X# #"###""""""" ##?????? | | ##??#" """""" " "" ##???## | | #???#"# "" """ " #####" | | ????#### " " " | | ???????### c | | ?????????### z | | ???????????## | | ????????????## | | ?????????????##" | | ??????????????#""" """""" | | ?????????????##" ######""" | | ?????????????#"" @ % ""##????#####""" | | ????????????##""" """##?????????##""" | | ????????????#""" %"""##???????????#"""" | | ????????????#""" % "#????????????#"" | | ????????????#"" ##????????????"""" | | ????????????#""" t % #?????????"" | | ????????????#"" ?????" | | ????????????##"" ? | | ?????????????#"""" ? ?? | | ?????????????## ? | | ??????????????#" " ? "" | | ??????????????#"""" ""????##""" " " | | ??????????????#"" ""##??????####""" | | ???????????????" """"##??????????###"" | | ????????????????"" """#?????????????### | | ????????????????? "??????????????????? | | ?????????????????" """??????????????????? | | ?????????????????""" ????????????????????? | | ????????????????????"" ??????????????????????? | | ?????????????????????????????????????????????????? | | ?????????????????????????????????????????????????? | | ?????????????????????????????????????????????????? | | ?????????????????????????????????????????????????? | | ?????????????????????????????????????????????????? | | ?????????????????????????????????????????????????? | +----------------------------------------------------+ Best States ------------- Heat Dissipation 25 Energy Generation 10 Energy Capacity 250 Matter Stores 300 Matter Capacity 300 Sight Range 16 Robot Scan Range 20 Terrain Scan Density 10 Evasion (%) 44 Item Schematics ----------------- Sml. Storage Unit | -10/Materials | Hacked Robot Schematics ------------------ None Fabricated ------------ Nothing Repaired ---------- Assault Rifle | 14% | -10/Materials Lgt. Assault Rifle | 35% | -10/Materials Studied --------- None Alien Tech Used ----------------- None Achievements -------------- None Challenges ------------ None Game ------ Seed DeepEnergyRay Manual? 0 Play Time 00:21:50 Cumulative 19.4 hours Start 2026.09.12 @ 20:27:21 End 2026.09.12 @ 22:08:46 Sessions 1 Manual Loads 0 Difficulty Rogue Special Mode None Game No. 22 Rogue 22 Adventurer 0 Explorer 0 Win Type - Total 1 Types 1/0/0/0/0/0/0/0/0/0 Lore% 12 Gallery% 23 Achievement% 25 Wizard Run 0 Options --------- Layout 0 ASCII 0 Keyboard 0 Movement Numpad Keybinds 0 Fullscreen 1 Font 18/Terminus Map View 76x50 Zoom Use 0% Tactical HUD 1 Map Filters NONE Filters NONE Steam 1 RUN: b389f528-feec-455c-9921-b5c6eb8ad7a8